[Event "FIDE World Rapid Chess Championship 2021"]
[White "Sargissian, Gabriel"]
[Black "Gukesh, D"]
[WhiteFideId "13300881"]
[BlackFideId "46616543"]
[WhiteElo "2693"]
[BlackElo "2050"]
[Result "1/2-1/2"]
[Round "07"]
[TimeControl "900+10"]
[Date "2021.12.27"]
[WhiteClock "0:03:57"]
[BlackClock "0:01:43"]

1. d4 {[%clk 0:15:00]}  Nf6 {[%clk 0:15:00]} 2. c4 {[%clk 0:15:00]}  e6 {[%clk 0:15:00]} 3. Nf3 {[%clk 0:15:00]}  d5 {[%clk 0:15:00]} 4. Nc3 {[%clk 0:15:00]}  Bb4 {[%clk 0:15:00]} 5. cxd5 {[%clk 0:15:00]}  exd5 {[%clk 0:15:00]} 6. Bg5 {[%clk 0:15:00]}  h6 {[%clk 0:15:00]} 7. Bh4 {[%clk 0:15:00]}  O-O {[%clk 0:14:36]} 8. e3 {[%clk 0:13:53]}  Bf5 {[%clk 0:14:36]} 9. Qb3 {[%clk 0:13:53]}  Bxc3+ {[%clk 0:14:36]} 10. bxc3 {[%clk 0:13:53]}  Nbd7 {[%clk 0:14:36]} 11. Be2 {[%clk 0:13:53]}  c5 {[%clk 0:14:36]} 12. dxc5 {[%clk 0:13:53]}  Nxc5 {[%clk 0:13:44]} 13. Qb4 {[%clk 0:13:33]}  Rc8 {[%clk 0:13:44]} 14. O-O {[%clk 0:13:33]}  g5 {[%clk 0:13:44]} 15. Bg3 {[%clk 0:13:33]}  Nfe4 {[%clk 0:13:44]} 16. Be5 {[%clk 0:13:33]}  Re8 {[%clk 0:13:44]} 17. Bd4 {[%clk 0:13:54]}  a5 {[%clk 0:11:42]} 18. Qa3 {[%clk 0:13:54]}  Ne6 {[%clk 0:11:42]} 19. Rac1 {[%clk 0:13:54]}  Nxd4 {[%clk 0:11:50]} 20. Nxd4 {[%clk 0:11:36]}  Bg6 {[%clk 0:11:50]} 21. Qb2 {[%clk 0:09:30]}  Re7 {[%clk 0:08:38]} 22. Bf3 {[%clk 0:09:03]}  Nc5 {[%clk 0:08:17]} 23. Be2 {[%clk 0:09:03]}  Ne4 {[%clk 0:08:17]} 24. Rfd1 {[%clk 0:05:54]}  Rec7 {[%clk 0:07:04]} 25. Nb5 {[%clk 0:05:54]}  Rc5 {[%clk 0:07:04]} 26. c4 {[%clk 0:05:54]}  Qf6 {[%clk 0:07:04]} 27. Qxf6 {[%clk 0:05:54]}  Nxf6 {[%clk 0:07:04]} 28. Nd6 {[%clk 0:05:27]}  R8c7 {[%clk 0:06:10]} 29. f3 {[%clk 0:05:27]}  Kf8 {[%clk 0:06:10]} 30. Nb5 {[%clk 0:05:27]}  Rc8 {[%clk 0:05:21]} 31. Nd6 {[%clk 0:04:19]}  R8c7 {[%clk 0:05:21]} 32. Nb5 {[%clk 0:04:19]}  Rc8 {[%clk 0:05:21]} 33. Kf2 {[%clk 0:04:19]}  Ke7 {[%clk 0:05:21]} 34. a4 {[%clk 0:04:19]}  dxc4 {[%clk 0:04:06]} 35. e4 {[%clk 0:03:49]}  c3 {[%clk 0:04:06]} 36. Nd6 {[%clk 0:03:57]}  R8c7 {[%clk 0:01:43]} 37. Nb5 {[%clk 0:03:57]}  Rc8 {[%clk 0:01:43]} 38. Nd6 {[%clk 0:03:57]}  R8c7 {[%clk 0:01:43]} 39. Nb5 {[%clk 0:03:57]} 1/2-1/2


[Site "http://www.Chess.com"]

[Event "FIDE World Rapid Chess Championship 2021"]
[White "Karjakin, Sergey"]
[Black "Gabuzyan, Hovhannes"]
[WhiteFideId "14109603"]
[BlackFideId "13303732"]
[WhiteElo "2757"]
[BlackElo "2535"]
[Result "1-0"]
[Round "07"]
[TimeControl "900+10"]
[Date "2021.12.27"]
[WhiteClock "0:06:33"]
[BlackClock "0:07:15"]

1. e4 {[%clk 0:15:00]}  c5 {[%clk 0:15:00]} 2. Nf3 {[%clk 0:15:00]}  d6 {[%clk 0:15:00]} 3. d4 {[%clk 0:15:00]}  cxd4 {[%clk 0:15:00]} 4. Nxd4 {[%clk 0:15:00]}  Nf6 {[%clk 0:15:00]} 5. Nc3 {[%clk 0:15:00]}  a6 {[%clk 0:15:00]} 6. Bd3 {[%clk 0:15:00]}  e5 {[%clk 0:15:00]} 7. Nde2 {[%clk 0:15:00]}  Nbd7 {[%clk 0:15:00]} 8. a4 {[%clk 0:15:26]}  Be7 {[%clk 0:15:39]} 9. Ng3 {[%clk 0:15:26]}  Nc5 {[%clk 0:15:39]} 10. Nf1 {[%clk 0:14:10]}  O-O {[%clk 0:13:51]} 11. Ne3 {[%clk 0:11:55]}  Be6 {[%clk 0:13:51]} 12. a5 {[%clk 0:11:55]}  Rc8 {[%clk 0:13:51]} 13. O-O {[%clk 0:11:55]}  Nxd3 {[%clk 0:13:51]} 14. Qxd3 {[%clk 0:11:55]}  Rc5 {[%clk 0:13:51]} 15. b4 {[%clk 0:11:55]}  Rxc3 {[%clk 0:12:20]} 16. Qxc3 {[%clk 0:12:04]}  Nxe4 {[%clk 0:12:20]} 17. Qd3 {[%clk 0:12:04]}  d5 {[%clk 0:12:20]} 18. Bb2 {[%clk 0:12:04]}  f6 {[%clk 0:12:20]} 19. Rfd1 {[%clk 0:11:11]}  Bxb4 {[%clk 0:08:28]} 20. c4 {[%clk 0:11:11]}  Nc5 {[%clk 0:08:28]} 21. Qb1 {[%clk 0:11:11]}  Nb3 {[%clk 0:08:28]} 22. cxd5 {[%clk 0:11:11]}  Bd7 {[%clk 0:10:15]} 23. Ba3 {[%clk 0:07:34]}  Bxa3 {[%clk 0:10:15]} 24. Qxb3 {[%clk 0:07:34]}  Bc5 {[%clk 0:10:15]} 25. d6+ {[%clk 0:07:34]}  Kh8 {[%clk 0:10:15]} 26. Qxb7 {[%clk 0:07:34]}  Bb5 {[%clk 0:10:15]} 27. Rac1 {[%clk 0:06:54]}  Bxe3 {[%clk 0:09:24]} 28. fxe3 {[%clk 0:06:54]}  f5 {[%clk 0:07:15]} 29. Qe7 {[%clk 0:06:33]}  e4 {[%clk 0:07:15]} 30. Qxd8 {[%clk 0:06:33]}  Rxd8 {[%clk 0:07:15]} 31. d7 {[%clk 0:06:33]} 1-0


[Site "http://www.Chess.com"]

[Event "FIDE World Rapid Chess Championship 2021"]
[White "Petrosyan, Manuel"]
[Black "Mamedov, Rauf"]
[WhiteFideId "13300857"]
[BlackFideId "13401653"]
[WhiteElo "2514"]
[BlackElo "2690"]
[Result "1/2-1/2"]
[Round "07"]
[TimeControl "900+10"]
[Date "2021.12.27"]
[WhiteClock "0:00:56"]
[BlackClock "0:00:43"]

1. d4 {[%clk 0:15:00]}  d5 {[%clk 0:15:00]} 2. Nf3 {[%clk 0:15:00]}  Nf6 {[%clk 0:15:00]} 3. Bf4 {[%clk 0:15:00]}  g6 {[%clk 0:15:00]} 4. Nbd2 {[%clk 0:15:00]}  Bg7 {[%clk 0:15:00]} 5. Nb3 {[%clk 0:15:00]}  O-O {[%clk 0:15:00]} 6. h3 {[%clk 0:15:46]}  a5 {[%clk 0:15:34]} 7. a4 {[%clk 0:15:46]}  Ne4 {[%clk 0:15:34]} 8. e3 {[%clk 0:15:46]}  c5 {[%clk 0:15:34]} 9. Nfd2 {[%clk 0:15:55]}  cxd4 {[%clk 0:13:57]} 10. exd4 {[%clk 0:15:55]}  Nc6 {[%clk 0:13:57]} 11. c3 {[%clk 0:15:55]}  e5 {[%clk 0:13:31]} 12. dxe5 {[%clk 0:13:02]}  Nxe5 {[%clk 0:13:31]} 13. Be2 {[%clk 0:13:02]}  Qh4 {[%clk 0:13:31]} 14. g3 {[%clk 0:13:02]}  Qe7 {[%clk 0:13:31]} 15. Kf1 {[%clk 0:12:29]}  b6 {[%clk 0:12:29]} 16. Nd4 {[%clk 0:12:29]}  Bb7 {[%clk 0:12:29]} 17. Bxe5 {[%clk 0:11:49]}  Bxe5 {[%clk 0:11:36]} 18. N2f3 {[%clk 0:11:49]}  Bd6 {[%clk 0:11:36]} 19. Kg2 {[%clk 0:10:27]}  Qf6 {[%clk 0:09:32]} 20. Bb5 {[%clk 0:10:27]}  Bc5 {[%clk 0:09:32]} 21. Qd3 {[%clk 0:09:51]}  Rac8 {[%clk 0:09:42]} 22. Rad1 {[%clk 0:09:51]}  Rc7 {[%clk 0:09:42]} 23. Rhf1 {[%clk 0:09:51]}  Re7 {[%clk 0:08:55]} 24. Ng1 {[%clk 0:06:34]}  Bxd4 {[%clk 0:08:55]} 25. Qxd4 {[%clk 0:06:34]}  Qxd4 {[%clk 0:08:55]} 26. Rxd4 {[%clk 0:06:34]}  Nd6 {[%clk 0:08:55]} 27. Bd3 {[%clk 0:06:30]}  Rc8 {[%clk 0:03:52]} 28. f3 {[%clk 0:06:30]}  Nc4 {[%clk 0:02:38]} 29. Bxc4 {[%clk 0:05:08]}  Rxc4 {[%clk 0:02:38]} 30. Rc1 {[%clk 0:05:08]}  Rxd4 {[%clk 0:01:39]} 31. cxd4 {[%clk 0:03:42]}  Re3 {[%clk 0:01:39]} 32. Rc2 {[%clk 0:01:59]}  Ba6 {[%clk 0:01:25]} 33. Kf2 {[%clk 0:01:59]}  Rb3 {[%clk 0:01:25]} 34. Ne2 {[%clk 0:01:48]}  Rb4 {[%clk 0:01:25]} 35. Nc3 {[%clk 0:01:48]}  Rxd4 {[%clk 0:01:25]} 36. g4 {[%clk 0:01:48]}  Bc4 {[%clk 0:01:08]} 37. Ke1 {[%clk 0:00:36]}  Rd3 {[%clk 0:01:08]} 38. Kf2 {[%clk 0:00:36]}  Kg7 {[%clk 0:01:08]} 39. Ne2 {[%clk 0:00:36]}  Rd1 {[%clk 0:01:08]} 40. Nc1 {[%clk 0:00:25]}  Ba6 {[%clk 0:00:12]} 41. Nb3 {[%clk 0:00:25]}  Bc4 {[%clk 0:00:12]} 42. Nc1 {[%clk 0:00:25]}  g5 {[%clk 0:00:12]} 43. b3 {[%clk 0:00:25]}  Ba6 {[%clk 0:00:12]} 44. Ne2 {[%clk 0:00:25]}  Bxe2 {[%clk 0:00:12]} 45. Kxe2 {[%clk 0:00:25]}  Rb1 {[%clk 0:00:12]} 46. Rc3 {[%clk 0:00:25]}  d4 {[%clk 0:00:12]} 47. Rd3 {[%clk 0:00:25]}  Kf6 {[%clk 0:00:12]} 48. Rxd4 {[%clk 0:00:25]}  Rxb3 {[%clk 0:00:12]} 49. Re4 {[%clk 0:00:25]}  h6 {[%clk 0:00:12]} 50. Rc4 {[%clk 0:00:25]}  Ke5 {[%clk 0:00:12]} 51. Rc6 {[%clk 0:00:25]}  f6 {[%clk 0:00:12]} 52. Kf2 {[%clk 0:00:25]}  Rb1 {[%clk 0:00:18]} 53. Kg3 {[%clk 0:00:24]}  Rb2 {[%clk 0:00:18]} 54. h4 {[%clk 0:00:24]}  Rb4 {[%clk 0:00:18]} 55. h5 {[%clk 0:00:24]}  Rxa4 {[%clk 0:00:18]} 56. Rxb6 {[%clk 0:00:24]}  Ra1 {[%clk 0:00:18]} 57. Rb5+ {[%clk 0:00:24]}  Ke6 {[%clk 0:00:18]} 58. Rb6+ {[%clk 0:00:24]}  Ke7 {[%clk 0:00:18]} 59. Rb7+ {[%clk 0:00:24]}  Ke6 {[%clk 0:00:18]} 60. Rb6+ {[%clk 0:00:24]}  Ke5 {[%clk 0:00:18]} 61. Rb5+ {[%clk 0:00:24]}  Kd4 {[%clk 0:00:18]} 62. Rf5 {[%clk 0:00:24]}  a4 {[%clk 0:00:18]} 63. Rxf6 {[%clk 0:00:24]}  a3 {[%clk 0:00:18]} 64. Ra6 {[%clk 0:00:24]}  Ke3 {[%clk 0:00:43]} 65. Kg2 {[%clk 0:00:56]}  Ra2+ {[%clk 0:00:43]} 66. Kg3 {[%clk 0:00:56]}  Ra1 {[%clk 0:00:43]} 67. Kg2 {[%clk 0:00:56]}  a2 {[%clk 0:00:43]} 68. Re6+ {[%clk 0:00:56]}  Kd4 {[%clk 0:00:43]} 69. Ra6 {[%clk 0:00:56]}  Kc4 {[%clk 0:00:43]} 70. Ra8 {[%clk 0:00:56]}  Kc3 {[%clk 0:00:43]} 71. Rc8+ {[%clk 0:00:56]}  Kb4 {[%clk 0:00:43]} 72. Rb8+ {[%clk 0:00:56]}  Ka5 {[%clk 0:00:43]} 73. Ra8+ {[%clk 0:00:56]}  Kb6 {[%clk 0:00:43]} 74. Ra3 {[%clk 0:00:56]} 1/2-1/2


[Site "http://www.Chess.com"]

[Event "FIDE World Rapid Chess Championship 2021"]
[White "Demchenko, Anton"]
[Black "Mastrovasilis, Dimitrios"]
[WhiteFideId "4160258"]
[BlackFideId "4202694"]
[WhiteElo "2666"]
[BlackElo "2534"]
[Result "1/2-1/2"]
[Round "07"]
[TimeControl "900+10"]
[Date "2021.12.27"]
[WhiteClock "0:00:10"]
[BlackClock "0:00:47"]

1. e4 {[%clk 0:15:00]}  e5 {[%clk 0:15:00]} 2. Nf3 {[%clk 0:15:00]}  Nc6 {[%clk 0:15:00]} 3. Bc4 {[%clk 0:15:00]}  Nf6 {[%clk 0:15:00]} 4. d3 {[%clk 0:15:00]}  Bc5 {[%clk 0:15:00]} 5. Bg5 {[%clk 0:15:00]}  h6 {[%clk 0:15:00]} 6. Bh4 {[%clk 0:15:00]}  O-O {[%clk 0:15:12]} 7. a4 {[%clk 0:16:01]}  Be7 {[%clk 0:15:12]} 8. Bg3 {[%clk 0:16:01]}  d6 {[%clk 0:15:12]} 9. h3 {[%clk 0:16:01]}  Be6 {[%clk 0:15:12]} 10. Bxe6 {[%clk 0:16:01]}  fxe6 {[%clk 0:15:12]} 11. c3 {[%clk 0:16:01]}  Qd7 {[%clk 0:15:12]} 12. O-O {[%clk 0:16:01]}  a5 {[%clk 0:14:36]} 13. Nbd2 {[%clk 0:15:42]}  Rf7 {[%clk 0:14:36]} 14. Qb3 {[%clk 0:15:42]}  b6 {[%clk 0:14:36]} 15. Qb5 {[%clk 0:15:42]}  Bf8 {[%clk 0:13:24]} 16. Rfe1 {[%clk 0:14:27]}  Rd8 {[%clk 0:10:57]} 17. Rac1 {[%clk 0:14:27]}  Nh5 {[%clk 0:09:59]} 18. Bh2 {[%clk 0:12:43]}  Nf4 {[%clk 0:07:03]} 19. Bxf4 {[%clk 0:11:56]}  Rxf4 {[%clk 0:07:12]} 20. Re3 {[%clk 0:11:56]}  Rf7 {[%clk 0:07:08]} 21. Nh2 {[%clk 0:09:11]}  Na7 {[%clk 0:07:08]} 22. Qb3 {[%clk 0:09:11]}  Nc6 {[%clk 0:07:08]} 23. Rf3 {[%clk 0:09:11]}  Rxf3 {[%clk 0:03:32]} 24. Ndxf3 {[%clk 0:08:46]}  Be7 {[%clk 0:03:32]} 25. Ng4 {[%clk 0:08:46]}  Kh7 {[%clk 0:03:32]} 26. Qc4 {[%clk 0:08:46]}  h5 {[%clk 0:03:32]} 27. Ne3 {[%clk 0:08:46]}  Bf6 {[%clk 0:03:32]} 28. h4 {[%clk 0:08:21]}  g6 {[%clk 0:02:34]} 29. g3 {[%clk 0:08:21]}  Kg7 {[%clk 0:02:34]} 30. Qb5 {[%clk 0:08:21]}  Ne7 {[%clk 0:02:34]} 31. Qb3 {[%clk 0:08:21]}  Nc6 {[%clk 0:02:34]} 32. Kg2 {[%clk 0:08:21]}  Qf7 {[%clk 0:02:34]} 33. Qd1 {[%clk 0:08:21]}  Rf8 {[%clk 0:02:34]} 34. Qe2 {[%clk 0:08:21]}  Nb8 {[%clk 0:02:14]} 35. d4 {[%clk 0:07:49]}  Nd7 {[%clk 0:02:14]} 36. Nc4 {[%clk 0:07:49]}  exd4 {[%clk 0:02:18]} 37. cxd4 {[%clk 0:05:35]}  d5 {[%clk 0:02:18]} 38. exd5 {[%clk 0:05:19]}  exd5 {[%clk 0:00:56]} 39. Nce5 {[%clk 0:05:19]}  Bxe5 {[%clk 0:00:56]} 40. dxe5 {[%clk 0:05:19]}  Nc5 {[%clk 0:01:07]} 41. Nd4 {[%clk 0:02:10]}  Re8 {[%clk 0:01:07]} 42. f4 {[%clk 0:02:10]}  Ne6 {[%clk 0:01:07]} 43. Nxe6+ {[%clk 0:01:09]}  Rxe6 {[%clk 0:00:27]} 44. Qd3 {[%clk 0:01:09]}  c6 {[%clk 0:00:27]} 45. Qd4 {[%clk 0:01:09]}  Qf5 {[%clk 0:00:27]} 46. Qxb6 {[%clk 0:01:09]}  Qe4+ {[%clk 0:00:27]} 47. Kg1 {[%clk 0:01:09]}  d4 {[%clk 0:00:27]} 48. Rf1 {[%clk 0:01:09]}  Qe3+ {[%clk 0:00:27]} 49. Kg2 {[%clk 0:01:09]}  Qe4+ {[%clk 0:00:27]} 50. Rf3 {[%clk 0:01:09]}  Re7 {[%clk 0:00:27]} 51. Qxa5 {[%clk 0:00:28]}  Rb7 {[%clk 0:00:14]} 52. b4 {[%clk 0:00:28]}  d3 {[%clk 0:00:14]} 53. b5 {[%clk 0:00:28]}  c5 {[%clk 0:00:14]} 54. Qc3 {[%clk 0:00:28]}  c4 {[%clk 0:00:14]} 55. f5 {[%clk 0:00:28]}  gxf5 {[%clk 0:00:14]} 56. e6+ {[%clk 0:00:28]}  Kg6 {[%clk 0:00:14]} 57. Qc1 {[%clk 0:00:28]}  f4 {[%clk 0:00:14]} 58. Qf1 {[%clk 0:00:28]}  Rg7 {[%clk 0:00:14]} 59. Kh2 {[%clk 0:00:28]}  fxg3+ {[%clk 0:00:14]} 60. Rxg3+ {[%clk 0:00:28]}  Kh7 {[%clk 0:00:14]} 61. Rxg7+ {[%clk 0:00:28]}  Kxg7 {[%clk 0:00:14]} 62. Qf7+ {[%clk 0:00:28]}  Kh6 {[%clk 0:00:41]} 63. Qf8+ {[%clk 0:00:30]}  Kh7 {[%clk 0:00:41]} 64. Qe7+ {[%clk 0:00:30]}  Kg6 {[%clk 0:00:41]} 65. Qg5+ {[%clk 0:00:30]}  Kh7 {[%clk 0:00:41]} 66. Qxh5+ {[%clk 0:00:30]}  Kg7 {[%clk 0:00:41]} 67. Qf7+ {[%clk 0:00:30]}  Kh6 {[%clk 0:00:41]} 68. e7 {[%clk 0:00:30]}  Qxh4+ {[%clk 0:00:41]} 69. Kg2 {[%clk 0:00:30]}  Qg4+ {[%clk 0:00:41]} 70. Kf2 {[%clk 0:00:30]}  Qe2+ {[%clk 0:00:41]} 71. Kg3 {[%clk 0:00:30]}  Qe3+ {[%clk 0:00:47]} 72. Kg4 {[%clk 0:00:10]}  d2 {[%clk 0:00:47]} 73. Qf6+ {[%clk 0:00:10]}  Kh7 {[%clk 0:00:47]} 74. Qf7+ {[%clk 0:00:10]}  Kh6 {[%clk 0:00:47]} 75. Qf4+ {[%clk 0:00:10]}  Qxf4+ {[%clk 0:00:47]} 76. Kxf4 {[%clk 0:00:10]}  d1=Q {[%clk 0:00:47]} 77. e8=Q {[%clk 0:00:10]}  Qf1+ {[%clk 0:00:47]} 78. Kg3 {[%clk 0:00:10]}  Qg1+ {[%clk 0:00:47]} 79. Kh3 {[%clk 0:00:10]}  Qh1+ {[%clk 0:00:47]} 80. Kg3 {[%clk 0:00:10]}  Qg1+ {[%clk 0:00:47]} 81. Kh3 {[%clk 0:00:10]} 1/2-1/2


[Site "http://www.Chess.com"]

[Event "FIDE World Rapid Chess Championship 2021"]
[White "Antipov, Mikhail Al."]
[Black "Pichot, Alan"]
[WhiteFideId "4107012"]
[BlackFideId "110973"]
[WhiteElo "2644"]
[BlackElo "2523"]
[Result "0-1"]
[Round "07"]
[TimeControl "900+10"]
[Date "2021.12.27"]
[WhiteClock "0:00:38"]
[BlackClock "0:05:03"]

1. e4 {[%clk 0:15:00]}  e5 {[%clk 0:15:00]} 2. Nf3 {[%clk 0:15:00]}  Nc6 {[%clk 0:15:00]} 3. Bc4 {[%clk 0:15:00]}  Nf6 {[%clk 0:15:00]} 4. d3 {[%clk 0:15:00]}  Bc5 {[%clk 0:15:00]} 5. c3 {[%clk 0:15:00]}  d6 {[%clk 0:15:00]} 6. O-O {[%clk 0:15:00]}  O-O {[%clk 0:15:00]} 7. Re1 {[%clk 0:15:00]}  h6 {[%clk 0:15:33]} 8. Nbd2 {[%clk 0:16:23]}  a5 {[%clk 0:15:33]} 9. Nf1 {[%clk 0:16:23]}  Be6 {[%clk 0:15:33]} 10. Bb5 {[%clk 0:16:23]}  Ne7 {[%clk 0:15:33]} 11. d4 {[%clk 0:16:23]}  exd4 {[%clk 0:15:33]} 12. Nxd4 {[%clk 0:16:23]}  Bg4 {[%clk 0:14:30]} 13. f3 {[%clk 0:15:23]}  Bd7 {[%clk 0:14:30]} 14. Bd3 {[%clk 0:15:23]}  Ng6 {[%clk 0:14:30]} 15. Ng3 {[%clk 0:15:23]}  Re8 {[%clk 0:14:30]} 16. Be3 {[%clk 0:15:23]}  Ne5 {[%clk 0:13:45]} 17. Ndf5 {[%clk 0:14:21]}  Bxe3+ {[%clk 0:12:31]} 18. Nxe3 {[%clk 0:13:27]}  b5 {[%clk 0:12:31]} 19. Bf1 {[%clk 0:13:27]}  Qb8 {[%clk 0:09:49]} 20. Qd4 {[%clk 0:13:10]}  Nc6 {[%clk 0:09:49]} 21. Qd2 {[%clk 0:13:10]}  Qb6 {[%clk 0:09:49]} 22. Kh1 {[%clk 0:13:10]}  Ne5 {[%clk 0:09:49]} 23. Qd4 {[%clk 0:11:26]}  Rab8 {[%clk 0:09:43]} 24. Rad1 {[%clk 0:11:26]}  Be6 {[%clk 0:09:43]} 25. b3 {[%clk 0:07:20]}  b4 {[%clk 0:08:41]} 26. Qxb6 {[%clk 0:07:20]}  Rxb6 {[%clk 0:08:41]} 27. c4 {[%clk 0:07:20]}  Ned7 {[%clk 0:08:41]} 28. Nd5 {[%clk 0:07:20]}  Bxd5 {[%clk 0:08:41]} 29. cxd5 {[%clk 0:07:20]}  Nc5 {[%clk 0:08:16]} 30. Nf5 {[%clk 0:06:15]}  a4 {[%clk 0:08:16]} 31. Nd4 {[%clk 0:06:15]}  Ra8 {[%clk 0:08:16]} 32. Kg1 {[%clk 0:06:22]}  Nfd7 {[%clk 0:07:28]} 33. Kf2 {[%clk 0:06:22]}  Ne5 {[%clk 0:07:28]} 34. f4 {[%clk 0:04:23]}  Ng4+ {[%clk 0:06:18]} 35. Kg3 {[%clk 0:04:23]}  Nf6 {[%clk 0:06:18]} 36. Kf3 {[%clk 0:04:23]}  axb3 {[%clk 0:06:18]} 37. axb3 {[%clk 0:04:23]}  Re8 {[%clk 0:06:18]} 38. Rc1 {[%clk 0:03:06]}  Nfxe4 {[%clk 0:05:03]} 39. Re2 {[%clk 0:00:38]}  Ra6 {[%clk 0:05:03]} 40. Rc4 {[%clk 0:00:38]}  Ra1 {[%clk 0:05:03]} 0-1


[Site "http://www.Chess.com"]

[Event "FIDE World Rapid Chess Championship 2021"]
[White "Riazantsev, Alexander"]
[Black "Christiansen, Johan-Sebastian"]
[WhiteFideId "4125029"]
[BlackFideId "1512668"]
[WhiteElo "2632"]
[BlackElo "2522"]
[Result "1/2-1/2"]
[Round "07"]
[TimeControl "900+10"]
[Date "2021.12.27"]
[WhiteClock "0:00:04"]
[BlackClock "0:00:19"]

1. d4 {[%clk 0:15:00]}  d5 {[%clk 0:15:00]} 2. c4 {[%clk 0:15:00]}  dxc4 {[%clk 0:15:00]} 3. Nf3 {[%clk 0:15:00]}  a6 {[%clk 0:14:32]} 4. e3 {[%clk 0:15:34]}  b5 {[%clk 0:14:32]} 5. a4 {[%clk 0:15:34]}  Bb7 {[%clk 0:14:32]} 6. b3 {[%clk 0:15:34]}  e6 {[%clk 0:14:32]} 7. bxc4 {[%clk 0:15:34]}  bxc4 {[%clk 0:14:32]} 8. Bxc4 {[%clk 0:15:34]}  c5 {[%clk 0:14:32]} 9. O-O {[%clk 0:15:34]}  Nf6 {[%clk 0:14:32]} 10. Qe2 {[%clk 0:15:10]}  cxd4 {[%clk 0:14:18]} 11. Nxd4 {[%clk 0:15:10]}  Bd6 {[%clk 0:14:18]} 12. Nd2 {[%clk 0:15:10]}  O-O {[%clk 0:13:19]} 13. Bb2 {[%clk 0:13:21]}  Nbd7 {[%clk 0:13:19]} 14. a5 {[%clk 0:13:21]}  Qe7 {[%clk 0:12:55]} 15. h3 {[%clk 0:11:48]}  Rfc8 {[%clk 0:12:55]} 16. Rfc1 {[%clk 0:11:07]}  Bb4 {[%clk 0:11:58]} 17. N4b3 {[%clk 0:11:07]}  e5 {[%clk 0:11:55]} 18. Bd3 {[%clk 0:08:10]}  Qd6 {[%clk 0:10:48]} 19. Nc4 {[%clk 0:07:09]}  Qe6 {[%clk 0:10:48]} 20. e4 {[%clk 0:06:33]}  g6 {[%clk 0:09:04]} 21. Kh2 {[%clk 0:06:33]}  Bf8 {[%clk 0:09:04]} 22. Rc2 {[%clk 0:06:33]}  Rab8 {[%clk 0:09:04]} 23. Rac1 {[%clk 0:04:35]}  Bxe4 {[%clk 0:07:29]} 24. Bxe4 {[%clk 0:04:07]}  Nxe4 {[%clk 0:06:06]} 25. Qxe4 {[%clk 0:04:07]}  Rxb3 {[%clk 0:06:06]} 26. Ba1 {[%clk 0:04:07]}  Rb4 {[%clk 0:06:06]} 27. Qe2 {[%clk 0:04:07]}  Bh6 {[%clk 0:06:06]} 28. Ne3 {[%clk 0:03:28]}  Rxc2 {[%clk 0:04:30]} 29. Rxc2 {[%clk 0:03:28]}  Rb5 {[%clk 0:04:30]} 30. Nc4 {[%clk 0:01:33]}  Rc5 {[%clk 0:03:39]} 31. Bb2 {[%clk 0:01:33]}  Bg7 {[%clk 0:03:39]} 32. Ba3 {[%clk 0:01:33]}  Rc6 {[%clk 0:03:39]} 33. Nb6 {[%clk 0:01:33]}  Nb8 {[%clk 0:03:48]} 34. Qd3 {[%clk 0:00:00]}  Bf6 {[%clk 0:03:48]} 35. Rd2 {[%clk 0:00:20]}  h5 {[%clk 0:00:30]} 36. Qe4 {[%clk 0:00:20]}  Be7 {[%clk 0:00:30]} 37. Bb2 {[%clk 0:00:20]}  Bf6 {[%clk 0:00:30]} 38. f4 {[%clk 0:00:20]}  Kh7 {[%clk 0:00:30]} 39. fxe5 {[%clk 0:00:20]}  Bg7 {[%clk 0:00:30]} 40. Qd5 {[%clk 0:00:20]}  Qxd5 {[%clk 0:00:19]} 41. Nxd5 {[%clk 0:00:04]}  Rc5 {[%clk 0:00:19]} 42. Nf6+ {[%clk 0:00:04]}  Bxf6 {[%clk 0:00:19]} 43. exf6 {[%clk 0:00:04]}  Rxa5 {[%clk 0:00:19]} 44. Rd8 {[%clk 0:00:04]}  Rb5 {[%clk 0:00:19]} 45. Bc3 {[%clk 0:00:04]}  g5 {[%clk 0:00:19]} 46. Rf8 {[%clk 0:00:04]}  Kg6 {[%clk 0:00:19]} 47. g4 {[%clk 0:00:04]}  hxg4 {[%clk 0:00:19]} 48. hxg4 {[%clk 0:00:04]}  Nd7 {[%clk 0:00:19]} 49. Rg8+ {[%clk 0:00:04]}  Kh6 {[%clk 0:00:19]} 50. Rh8+ {[%clk 0:00:04]}  Kg6 {[%clk 0:00:19]} 51. Rg8+ {[%clk 0:00:04]}  Kh6 {[%clk 0:00:19]} 52. Rh8+ {[%clk 0:00:04]} 1/2-1/2


[Site "http://www.Chess.com"]